bitfinex/quotes_ETHUSD_20240716
["timestamp","ask_amount","ask_price","bid_price","bid_amount"]
[1721142550089,0.09043329,3436.3,3435.3,2.91095]
[1721142550278,0.09043329,3436.3,3435.3,5.8219]
[1721142550455,0.09043329,3436.3,3436.1,2.9102]
[1721142550660,0.09043329,3436.3,3436.1,6.11141]
[1721142550991,0.09043329,3436.3,3436.1,3.20121]
[1721142551195,0.09043329,3436.3,3435.6,2.3313]
[1721142551487,0.09043329,3436.3,3436.2,5.82038]
[1721142551687,0.09043329,3436.3,3436.2,6.25061736]
[1721142551887,0.09043329,3436.3,3436.2,8.62781736]
[1721142552091,2.90877,3437.9,3436.8,2.90967]
[1721142552300,2.2823,3438.4,3436.9,0.43023736]
[1721142552301,2.90894,3437.7,3436.9,0.43023736]
[1721142552481,5.19067,3438.4,3436.3,0.3605037]
[1721142552482,2.909,3437.6,3436.3,0.3605037]
[1721142552812,2.2823,3438.4,3436.2,2.3772]
[1721142552813,2.9094,3437.2,3436.2,2.3772]
[1721142552997,2.9094,3437.2,3436.3,0.43023736]
[1721142553320,2.90848,3438.3,3436.3,0.43023736]
[1721142553321,0.03333842,3437.1,3436.5,3.333]
[1721142553600,0.03333842,3437.1,3436.3,0.43023736]
[1721142553601,0.03333842,3437.1,3437.0,11.52922]
[1721142553811,0.148592,3438.9,3437.0,9.12288668]
[1721142553812,2.90849,3438.2,3437.0,9.12288668]
[1721142554127,2.90849,3438.2,3437.4,2.90916]
[1721142554444,2.90815,3438.7,3437.5,0.43023736]
[1721142554665,0.03263272,3438.1,3437.5,0.43023736]
[1721142554811,2.90826,3438.5,3437.5,3.9803571]
[1721142555125,0.148592,3438.9,3437.1,0.30560189]
[1721142555126,2.90883,3437.8,3437.1,0.30560189]
[1721142555427,2.2823,3438.1,3437.1,0.30560189]
[1721142555428,2.90934,3437.2,3437.1,0.30560189]
[1721142555627,2.2823,3438.1,3437.1,0.30560189]
[1721142555792,0.03263272,3437.2,3437.1,0.30560189]
[1721142555991,2.90844,3438.3,3437.1,3.64164759]
[1721142556188,0.03263272,3438.2,3437.5,2.90908]
[1721142556399,0.03263272,3438.2,3437.6,0.4266257]
[1721142556600,2.90835,3438.4,3437.6,3.3356257]
[1721142556896,2.90809,3438.7,3437.4,2.90916]
[1721142556897,2.90809,3438.7,3437.7,3.3355357]
[1721142557092,2.90809,3438.7,3437.9,2.90874]
[1721142557093,0.03263272,3438.6,3437.9,2.90874]
[1721142557319,0.03263272,3438.6,3438.0,3.3352757]
[1721142557499,0.03263272,3438.6,3438.2,2.90849]
[1721142557726,0.148592,3438.9,3438.3,0.4266257]
[1721142557727,2.90811,3438.7,3438.3,0.4266257]
[1721142557934,2.90811,3438.7,3437.5,2.90908]
[1721142557935,2.90833,3438.4,3437.5,2.90908]
[1721142558251,2.90881,3437.9,3437.1,0.30560189]
[1721142558406,0.03263272,3438.3,3437.1,0.30560189]
[1721142558407,2.90901,3437.6,3437.1,0.30560189]
[1721142558610,2.90901,3437.6,3436.6,5.2993]
[1721142558611,2.90901,3437.6,3436.6,2.90978]
[1721142558806,2.90901,3437.6,3436.7,0.4266257]
[1721142559011,2.90912,3437.5,3436.7,0.4266257]
[1721142559191,2.90912,3437.5,3436.3,2.2518]
[1721142559192,2.90927,3437.3,3436.8,0.43983493]
[1721142559429,0.581813,3437.5,3436.9,0.43983493]
[1721142559430,3.490903,3437.5,3436.9,0.43983493]
[1721142559597,0.03263272,3437.2,3437.0,0.43983493]
[1721142559799,2.90976,3436.8,3435.6,3.071]
[1721142560029,2.90976,3436.8,3435.4,2.3267]
[1721142560030,2.26,3437.3,3435.4,2.3267]
[1721142560031,5.16931,3437.3,3435.4,2.3267]
[1721142560230,0.5751123,3437.2,3435.9,2.91037]
[1721142560525,0.03263272,3437.1,3436.0,0.43983493]
[1721142560708,2.90975,3436.8,3436.1,0.43983493]
[1721142560904,0.5751123,3437.2,3436.1,0.43983493]
[1721142560905,2.90992,3436.6,3436.1,0.43983493]
[1721142561090,2.90992,3436.6,3436.2,0.43983493]
[1721142561291,0.03270911,3436.5,3436.3,0.43983493]
[1721142561490,2.90968,3436.8,3435.7,3.35044493]
[1721142561723,0.03270184,3436.7,3435.9,2.91044]
[1721142561924,0.03270184,3436.7,3436.0,0.43983493]
[1721142562232,0.581813,3437.5,3436.0,0.43983493]
[1721142562233,2.90913,3437.5,3436.4,2.90996]
[1721142562442,0.03270184,3437.4,3436.6,2.90982]
[1721142562609,2.94188184,3437.4,3436.7,0.43983493]
[1721142562809,3.52697602,3437.4,3436.7,0.43983493]
[1721142563315,3.52697602,3437.4,3436.5,3.34976493]
[1721142563518,3.52697602,3437.4,3436.6,0.43983493]
[1721142563732,2.90946,3437.1,3436.6,0.43983493]
[1721142563917,0.03270184,3437.4,3436.6,3.34968493]
[1721142564120,0.0327382,3437.0,3436.4,2.91]
[1721142564318,6.2138902,3438.6,3436.6,2.90984]
[1721142564319,2.90902,3437.6,3436.6,2.90984]
[1721142564722,0.03273638,3437.5,3436.6,2.90984]
[1721142564925,2.90917,3437.4,3436.6,2.90984]
[1721142565223,0.03273638,3437.3,3436.8,2.90965]
[1721142565431,2.90884,3437.8,3436.9,3.49733743]
[1721142565643,0.03273638,3437.7,3436.9,3.49733743]
[1721142566005,2.94165638,3437.7,3436.9,0.58776743]
[1721142566205,2.9091,3437.5,3436.5,2.90987]
[1721142566405,0.03276912,3437.4,3436.2,2.91012]
[1721142566640,2.90945,3437.1,3436.0,2.91033]
[1721142566848,2.90945,3437.1,3435.7,2.3586]
[1721142567020,2.90886,3437.8,3435.9,2.91044]
[1721142567021,2.9097,3436.8,3435.9,2.91044]
[1721142567202,0.03276912,3437.0,3435.9,3.76716215]
[1721142567412,2.90966,3436.9,3435.9,3.76716215]
[1721142567739,2.90952,3437.0,3435.9,3.76716215]
[1721142567909,2.90952,3437.0,3435.6,3.071]
[1721142567910,0.03276548,3436.8,3435.1,2.4951]
[1721142568116,5.24911,3437.4,3435.5,2.91077]
[1721142568117,2.91004,3436.4,3435.5,2.91077]
[1721142568313,2.91004,3436.4,3435.1,2.4951]
[1721142568314,2.91004,3436.4,3435.3,2.91092]
[1721142568513,2.91004,3436.4,3435.6,2.91064]
[1721142568514,0.03269397,3436.3,3435.6,2.91064]
[1721142568923,1.49989454,3440.1,3436.0,2.91033]
[1721142568924,2.9096,3436.9,3436.0,2.91033]
[1721142569234,2.90872,3438.0,3436.1,2.91027]
[1721142569235,0.03262666,3436.2,3436.1,2.91027]
[1721142569435,2.90932,3437.3,3436.2,2.91012]
[1721142569651,2.2531,3437.9,3436.2,2.91012]
[1721142569652,5.1619,3437.9,3436.8,2.90967]
[1721142569819,2.9088,3437.9,3436.9,2.90958]
[1721142570634,2.9088,3437.9,3437.0,2.9095]
[1721142571024,2.90885,3437.8,3437.0,2.9095]
[1721142571631,5.16144,3438.4,3437.3,2.90925]
[1721142571835,2.90858,3438.1,3437.3,2.90925]
[1721142572032,3.45513102,3438.3,3437.3,2.90925]
[1721142572207,2.2531,3438.4,3437.5,2.90908]
[1721142572414,2.9085,3438.2,3437.5,2.90908]
[1721142572834,2.90844,3438.3,3437.5,2.90908]
[1721142573145,2.90851,3438.2,3437.3,2.90925]
[1721142573457,2.90851,3438.2,3437.4,2.90916]
[1721142573611,3.490188,3438.2,3437.2,2.90929]
[1721142573813,2.90867,3438.0,3436.9,5.35347]
[1721142574136,2.90867,3438.0,3437.2,2.90934]
[1721142574333,0.581678,3438.2,3437.2,2.90934]
[1721142574557,2.90858,3438.1,3437.3,2.90923]
[1721142574766,2.90858,3438.1,3437.1,2.90936]
[1721142574948,2.90858,3438.1,3437.0,2.90948]
[1721142575435,2.90858,3438.1,3437.2,2.90934]
[1721142575642,0.3056702,3438.6,3436.8,0.290967]
[1721142575643,2.90834,3438.4,3436.8,0.290967]
[1721142575827,0.3056702,3438.6,3436.5,3.0]
[1721142575828,2.90911,3437.5,3436.5,3.0]
[1721142576032,2.90897,3437.7,3436.6,2.90982]
[1721142576235,2.90897,3437.7,3436.8,2.90966]
[1721142576435,2.90878,3437.9,3437.1,2.90941]
[1721142576650,2.90878,3437.9,3436.9,2.90959]
[1721142576651,2.90884,3437.8,3436.9,2.90959]
[1721142576853,5.59095802,3438.5,3436.6,2.90979]
[1721142576854,2.68267802,3438.5,3436.6,2.90979]
[1721142577028,2.9085,3438.2,3436.8,2.9096]
[1721142577355,5.59098802,3438.5,3436.9,2.90959]
[1721142577526,2.90885,3437.8,3437.0,2.90949]
[1721142578060,2.909,3437.6,3436.5,5.9099]
[1721142578220,2.90918,3437.4,3436.5,3.0]
[1721142578417,2.90918,3437.4,3436.4,2.91001]
[1721142578652,2.90929,3437.3,3436.5,5.90992]
[1721142579332,2.90923,3437.4,3436.6,0.0581879]
[1721142579530,0.03271822,3437.2,3436.5,5.90992]
[1721142579745,2.90923,3437.4,3436.5,5.90992]
[1721142579931,0.03271822,3437.1,3436.5,5.90992]
[1721142580137,2.90927,3437.3,3436.5,5.90992]
[1721142580654,3.491101,3437.3,3436.5,2.90992]
[1721142580816,0.03271822,3437.2,3436.5,2.90992]
[1721142581245,0.03271822,3437.2,3436.4,2.91001]
[1721142581246,2.94212822,3437.2,3436.4,2.91001]
[1721142581450,2.90945,3437.1,3436.3,2.91002]
[1721142581648,0.03271822,3437.2,3436.3,2.91002]
[1721142581832,0.03273096,3437.0,3436.3,2.91002]
[1721142582031,0.581831,3437.3,3436.4,2.91001]
[1721142582243,0.03273096,3436.9,3436.4,2.91001]
[1721142582563,0.03273096,3436.9,3435.7,2.91055]
[1721142582564,2.4611,3437.6,3435.6,2.91068]
[1721142582565,2.91,3436.5,3435.6,2.91068]
[1721142582919,2.91029,3436.1,3435.3,2.91089]
[1721142583086,0.03261579,3436.4,3435.4,0.291089]
[1721142583087,2.91026,3436.2,3435.4,0.291089]
[1721142583223,0.03251939,3436.0,3435.4,3.201949]
[1721142583527,0.03251939,3436.0,3435.5,2.91076]
[1721142583871,2.91015,3436.3,3435.4,0.291089]
[1721142584205,2.91008,3436.4,3435.4,0.291089]
[1721142584206,0.03251393,3435.9,3435.4,3.201949]
[1721142584342,2.9102,3436.2,3435.5,3.2309649]
[1721142584530,2.9102,3436.2,3435.5,0.3201949]
[1721142584531,0.03234656,3435.8,3435.5,0.3201949]
[1721142584858,2.9102,3436.2,3435.5,0.3201949]
[1721142585046,0.03234656,3435.7,3435.5,0.3201949]
[1721142585253,2.91029,3436.1,3435.2,2.91101]
[1721142585448,0.03234656,3435.6,3435.3,2.91095]
[1721142585762,0.03234656,3435.6,3434.9,8.4996]
[1721142585763,0.03234656,3435.5,3435.0,2.91117]
[1721142585931,0.03234656,3435.5,3435.1,2.91111]
[1721142586246,2.91037,3436.0,3435.1,2.91111]
[1721142586451,0.03234656,3435.4,3435.1,2.91111]
[1721142586667,2.91037,3436.0,3435.2,2.91103]
[1721142586836,2.91037,3436.0,3435.3,2.91094]
[1721142587055,2.91037,3436.0,3435.1,4.343306]
[1721142587442,2.91037,3436.0,3435.2,2.91103]
[1721142587664,2.91037,3436.0,3435.1,1.432196]
[1721142588472,2.91058,3435.8,3435.2,0.32146729]
[1721142588761,2.91046,3435.9,3435.2,0.32146729]
[1721142589072,2.91037,3436.0,3435.2,0.32146729]
[1721142589073,2.91053,3435.8,3435.2,0.32146729]
[1721142589274,2.91026,3436.2,3435.3,2.91089]
[1721142589480,2.4611,3436.7,3435.3,2.91089]
[1721142589481,2.9099,3436.6,3435.5,2.91078]
[1721142589681,2.90998,3436.5,3435.5,2.91078]
[1721142590052,2.90987,3436.6,3435.7,2.91054]
[1721142591087,2.90994,3436.5,3435.6,2.91069]
[1721142591258,0.581981,3436.5,3435.0,2.91113]
[1721142591446,3.0,3437.9,3434.9,8.4996]
[1721142591447,5.82074,3436.0,3435.9,0.30598459]
[1721142592049,8.73111,3436.0,3435.9,0.30598459]
[1721142592381,5.82074,3436.0,3435.9,0.30598459]
[1721142592758,8.73111,3436.0,3435.9,0.30598459]
[1721142593949,5.82074,3436.0,3435.9,0.30598459]
[1721142594582,0.03200078,3436.0,3435.9,0.30598459]
[1721142595059,2.91024,3436.2,3435.9,0.30598459]
[1721142595592,0.03188791,3436.1,3435.9,0.30598459]
[1721142596088,2.91036,3436.0,3435.9,0.30598459]
[1721142596252,5.82072,3436.0,3435.9,0.30598459]
[1721142596450,8.73078079,3436.0,3435.9,0.30598459]
[1721142596690,8.7626687,3436.0,3435.9,0.30598459]
[1721142598453,5.85260791,3436.0,3435.9,0.30598459]
[1721142599989,8.76296791,3436.0,3435.9,0.30598459]
[1721142600580,14.05982791,3436.0,3435.9,0.30598459]
[1721142600778,20.45182791,3436.0,3435.9,0.30598459]
[1721142600978,20.93082791,3436.0,3435.9,0.30598459]
[1721142601180,21.93521308,3436.0,3435.9,0.30598459]
[1721142602129,15.70385308,3436.0,3435.9,0.30598459]
[1721142602480,9.79349308,3436.0,3435.9,0.30598459]
[1721142602718,8.23910791,3436.0,3435.9,0.30598459]
[1721142603031,5.85260791,3436.0,3435.9,0.30598459]
[1721142603832,0.03188791,3436.0,3435.9,0.30598459]
[1721142604310,2.90964,3436.9,3435.9,3.27462367]
[1721142604485,2.90975,3436.8,3435.9,3.27462367]
[1721142604691,2.94057495,3436.8,3436.0,0.86473537]
[1721142604887,2.94057495,3436.8,3436.1,0.05819899]
[1721142605114,0.03082495,3436.8,3436.1,0.05819899]
[1721142605282,2.4317,3437.8,3436.0,3.93573537]
[1721142605485,2.90919,3437.4,3436.3,2.91002]
[1721142605718,2.90919,3437.4,3436.4,0.291002]
[1721142605883,2.90919,3437.4,3436.5,2.90988]
[1721142606081,2.90908,3437.6,3436.4,0.291002]
[1721142606082,0.03010014,3437.3,3436.6,2.90984]
[1721142606286,0.03010014,3437.3,3436.7,5.22805]
[1721142606530,2.90906,3437.6,3436.7,5.22805]
[1721142606726,2.90906,3437.6,3436.8,0.813798]
[1721142607047,2.9393827,3437.5,3436.8,0.813798]
[1721142607186,2.90936,3437.2,3436.1,5.4678]
[1721142607543,2.90961,3436.9,3436.1,5.4678]
[1721142607829,2.90961,3436.9,3436.1,2.4678]
[1721142608190,5.40754,3437.6,3436.0,3.77508537]
[1721142608191,2.90978,3436.7,3436.0,0.86473537]
[1721142608496,2.90992,3436.6,3435.9,0.30598459]
[1721142608908,2.90978,3436.7,3435.9,0.30598459]
[1721142608909,0.03026254,3436.5,3435.9,0.30598459]
[1721142609227,5.40757,3437.6,3435.9,0.30598459]
[1721142609228,2.90911,3437.5,3436.5,2.9099]
[1721142609391,5.29175,3438.1,3436.5,2.9099]
[1721142609392,2.90918,3437.4,3436.5,2.9099]
[1721142609587,0.03017856,3437.4,3436.4,5.17211]
[1721142609926,0.03017856,3437.4,3436.7,2.90975]
[1721142610142,0.03017856,3437.4,3436.8,0.05818614]
[1721142610292,2.90867,3438.0,3436.8,2.96786614]
[1721142610293,2.90893,3437.7,3436.8,2.96786614]
[1721142610640,2.90878,3437.9,3436.9,0.05818597]
[1721142610933,5.4541,3438.6,3437.0,2.2621]
[1721142610934,0.03020413,3437.6,3437.0,2.2621]
[1721142611163,0.02925836,3437.8,3437.5,2.90908]
[1721142611427,2.90817,3438.6,3437.1,0.61648383]
[1721142611428,0.148592,3438.9,3437.7,2.3613]
[1721142611641,0.148592,3438.9,3438.1,2.90855]
[1721142611928,2.90825,3438.5,3437.5,2.90906]
[1721142612086,2.90855,3438.2,3437.2,2.3613]
[1721142612290,0.290825,3438.4,3437.4,2.90917]
[1721142612720,0.148592,3438.9,3437.6,3.321]
[1721142613085,0.148592,3438.9,3437.8,5.3039]
[1721142613325,3.056502,3438.9,3437.9,2.90869]
[1721142613622,0.148592,3438.9,3438.1,2.90851]
[1721142613997,0.148592,3438.9,3438.2,0.0421302]
[1721142614187,0.148592,3438.9,3438.2,3.49439702]
[1721142614425,0.148592,3438.9,3438.5,2.90823]
[1721142615029,0.148592,3438.9,3438.8,2.90799]
[1721142615234,0.148592,3438.9,3438.8,14.79497]
[1721142616163,2.403,3441.0,3438.8,14.79497]
[1721142616164,1.81979625,3442.4,3440.8,2.90625]
[1721142616431,2.2657,3442.5,3440.6,2.90643]
[1721142616432,2.90538,3441.9,3440.6,2.90643]
[1721142616590,0.42340883,3442.2,3440.8,2.90627]
[1721142616591,2.90516,3442.2,3440.8,2.90627]
[1721142616794,0.148592,3442.3,3440.8,5.3555]
[1721142616991,0.148592,3442.3,3441.6,2.9056]
[1721142617191,0.148592,3442.3,3441.4,2.90572]
[1721142617393,0.148592,3442.3,3440.9,1.00387831]
[1721142617394,5.36464,3442.2,3440.9,1.00387831]
[1721142617718,5.36464,3442.2,3440.5,2.90652]
[1721142617719,0.5513232,3442.1,3440.5,2.90652]
[1721142617896,0.5513232,3442.1,3440.3,2.90672]
[1721142617897,2.90574,3441.5,3440.3,2.90672]
[1721142618231,2.90598,3441.2,3440.2,2.2845]
[1721142618797,0.02884584,3441.1,3440.2,5.19128]
[1721142619104,2.98804994,3441.1,3440.2,2.2845]
[1721142619315,2.9064,3440.7,3439.5,2.3695]
[1721142619530,2.9064,3440.7,3437.9,1.5]
[1721142619531,3.071,3440.2,3437.5,2.3695]
[1721142619715,2.90782,3439.0,3438.9,0.01229051]
[1721142620026,1.5,3440.1,3438.0,2.90858]
[1721142620027,2.9075,3439.4,3438.0,2.90858]
[1721142620228,2.90774,3439.1,3437.6,2.909]
[1721142620434,2.90732,3439.6,3438.2,2.90845]
[1721142620635,0.0531541,3439.7,3438.3,2.90841]
[1721142620835,0.0531541,3439.7,3438.8,2.9079]
[1721142621205,2.4639,3439.6,3437.2,1.42857364]
[1721142621396,2.4639,3439.6,3436.1,2.3122]
[1721142621397,2.90809,3438.7,3437.6,2.90897]
[1721142621712,2.90791,3438.9,3437.8,2.90882]
[1721142621932,2.90751,3439.4,3438.3,2.90838]
[1721142622132,2.90734,3439.6,3438.5,2.90824]
[1721142622341,2.9074,3439.5,3438.5,2.90824]
[1721142622533,2.9074,3439.5,3438.2,2.90847]
[1721142622744,2.9074,3439.5,3437.6,3.50216299]
[1721142622745,0.29605541,3439.4,3438.6,0.01427522]
[1721142623064,0.29605541,3439.4,3437.6,3.50216299]
[1721142623065,2.90768,3439.2,3437.7,2.90886]
[1721142623338,2.90768,3439.2,3437.6,0.43116299]
[1721142623339,2.90768,3439.2,3438.0,2.90866]
[1721142623698,2.90809,3438.7,3437.6,0.43116299]
[1721142624037,2.90817,3438.6,3437.6,0.43116299]
[1721142624211,2.90817,3438.6,3437.7,2.92075005]
[1721142624418,2.90817,3438.6,3437.7,0.01186005]
[1721142624754,0.02884584,3438.5,3437.7,0.01186005]
[1721142624906,0.02884584,3438.5,3437.5,2.90902]
[1721142625329,0.02884584,3438.5,3437.4,2.90915]
[1721142625505,0.02884584,3438.5,3437.5,2.90908]
[1721142625711,0.02884584,3438.5,3437.3,2.3122]
[1721142625712,0.02884584,3438.5,3437.7,2.90885]
[1721142625913,0.02884584,3438.5,3437.8,2.90879]
[1721142626109,0.02884584,3438.5,3437.9,0.04213469]
[1721142626316,2.90776,3439.1,3438.1,2.90858]
[1721142626640,2.90825,3438.5,3438.2,0.01413271]
[1721142626811,2.90825,3438.5,3437.5,2.90902]
[1721142627007,0.581635,3438.4,3437.5,2.90902]
[1721142627312,2.90843,3438.3,3437.3,2.90919]
[1721142627521,3.51879227,3438.4,3437.6,0.02883315]
[1721142627841,2.90857,3438.2,3437.5,0.02893879]
[1721142628135,2.90867,3438.0,3437.1,0.02924591]
[1721142628337,0.35188223,3438.2,3437.3,2.90925]
[1721142628631,0.35188223,3438.2,3437.4,0.02949621]
[1721142628940,0.02876727,3438.1,3437.5,2.90908]
[1721142629109,0.02876727,3438.1,3437.6,0.02961951]
[1721142629308,0.02876727,3438.1,3437.3,2.90925]
[1721142629517,3.489975,3438.4,3437.6,0.00093097]
[1721142629518,0.581635,3438.4,3437.6,0.00093097]
[1721142629723,3.490005,3438.4,3437.5,2.90901]
[1721142629909,0.02871794,3438.3,3437.5,5.81803]
[1721142630122,0.02871794,3438.3,3437.5,2.90901]
[1721142630321,0.02871794,3438.3,3437.6,2.9312483]
[1721142630635,0.02871794,3438.3,3437.9,2.90874]
[1721142630833,0.02871794,3438.3,3437.7,0.33526197]
[1721142630834,0.02871794,3438.3,3438.0,2.95078347]
[1721142630999,5.95047,3439.6,3438.1,0.04213224]
[1721142631198,0.02871794,3438.2,3438.1,0.04213102]
[1721142631397,2.90796,3438.9,3438.0,2.90865]
[1721142631618,0.581569,3438.8,3438.1,0.03915072]
[1721142631865,2.90827,3438.5,3438.1,0.03915072]
[1721142632054,3.071,3438.5,3438.1,0.03915072]
[1721142632342,2.90892,3437.7,3436.2,2.4514]
[1721142632502,2.90892,3437.7,3436.6,2.90981]
[1721142632700,2.90914,3437.5,3436.6,2.90981]
[1721142632904,0.62673187,3437.6,3436.1,2.91025]
[1721142632905,2.90926,3437.3,3436.1,2.91025]
[1721142633111,2.90926,3437.3,3435.9,2.91043]
[1721142633112,0.02861929,3437.2,3435.9,2.91043]
[1721142633530,2.90952,3437.0,3436.1,2.91024]
[1721142633747,0.02848222,3436.9,3436.2,2.91016]
[1721142633922,3.507032,3437.6,3436.2,0.58204]
[1721142634245,2.90918,3437.4,3436.4,2.91]
[1721142634450,0.02830632,3437.5,3436.0,2.91035]
[1721142634614,2.90953,3437.0,3436.2,2.91017]
[1721142634944,3.071,3437.4,3436.3,2.91009]
[1721142635156,2.90941,3437.2,3436.3,2.91009]
[1721142635340,3.60595402,3437.1,3436.3,2.91009]
[1721142635828,0.02830632,3437.0,3435.7,1.4937653]
[1721142636031,0.02830632,3437.0,3436.7,2.90975]
[1721142636249,0.597992,3437.6,3436.8,0.02548609]
[1721142636250,2.90906,3437.6,3436.8,0.02548609]
[1721142636563,0.02830632,3437.5,3436.8,0.02548609]
[1721142636866,2.90918,3437.4,3436.8,0.02548609]
[1721142637073,2.90943,3437.1,3436.5,0.02645299]
[1721142637228,2.90943,3437.1,3436.3,0.02747515]
[1721142637229,3.071,3437.1,3436.3,0.02747515]
[1721142637436,2.90968,3436.9,3436.1,2.91019]
[1721142637822,2.90968,3436.9,3436.0,2.95245453]
[1721142637823,2.90947,3437.1,3436.2,2.91016]
[1721142638019,0.02830632,3436.8,3436.5,2.9099]
[1721142638253,3.49396463,3437.3,3436.6,0.0460686]
[1721142638451,0.02830632,3436.7,3436.6,0.04606726]
[1721142638747,0.02830632,3436.7,3436.3,2.91008]
[1721142638924,4.09967546,3437.2,3436.3,2.91008]
[1721142638925,0.64030546,3437.2,3436.4,0.01056368]
[1721142639141,0.02830632,3437.1,3436.4,0.01056368]
[1721142639568,2.383,3437.9,3436.4,0.04606994]
[1721142639735,1.26660632,3437.8,3436.4,0.04606994]
[1721142640066,3.071,3437.7,3436.5,0.01725147]
[1721142640374,3.6883,3437.8,3437.1,0.30624848]
[1721142640654,0.02830632,3437.7,3437.2,0.04606055]
[1721142640873,3.071,3437.6,3437.2,0.04605921]
[1721142641078,0.63543632,3437.7,3437.2,0.04605921]
[1721142641079,3.071,3437.4,3437.2,0.04605921]
[1721142641423,0.02830632,3437.3,3437.2,0.04605921]
[1721142641754,0.02830632,3437.3,3437.1,0.30624848]
[1721142641929,3.67813,3437.7,3437.1,0.30624848]
[1721142642129,3.93441932,3437.6,3437.1,0.30624848]
[1721142642652,3.0,3437.5,3437.2,0.00634623]
[1721142642975,0.93441932,3437.6,3437.2,0.00634623]
[1721142642976,0.906113,3437.6,3437.2,0.00634623]
[1721142643174,2.93745632,3437.5,3437.2,0.00634623]
[1721142643352,0.02830632,3437.5,3437.2,0.00634623]
[1721142643670,1.00605333,3437.5,3437.2,0.00634623]
[1721142644032,1.00605333,3437.5,3437.2,0.50634623]
[1721142645872,0.02830632,3437.5,3437.2,0.50634623]
[1721142646164,2.3074,3438.5,3437.4,2.90917]
[1721142646351,0.02725997,3438.4,3437.4,2.90917]
[1721142646551,3.09825997,3438.4,3437.5,0.03227038]
[1721142646931,2.90855,3438.2,3437.5,0.03227038]
[1721142647135,0.02728191,3438.1,3437.5,2.90907]
[1721142647348,5.97938,3438.4,3437.5,2.90907]
[1721142647568,2.3074,3438.5,3437.7,2.90886]
[1721142647569,0.828678,3438.3,3437.7,2.90886]
[1721142647864,0.02728191,3438.3,3437.6,2.90894]
[1721142648066,0.02728191,3438.3,3437.8,2.9088]
[1721142648366,0.02555788,3438.2,3437.8,2.9088]
[1721142648534,2.90812,3438.7,3437.6,2.90894]
[1721142648740,2.93371788,3438.6,3437.8,2.90881]
[1721142648947,0.89128379,3438.5,3437.8,2.90881]
[1721142649692,2.90843,3438.3,3437.4,2.90916]
[1721142650187,3.96228379,3438.5,3437.2,0.5]
[1721142650188,3.09655788,3438.2,3437.2,0.5]
[1721142650481,2.90901,3437.6,3437.2,0.5]
[1721142650657,0.581786,3437.5,3437.2,0.5]
[1721142650862,0.02563109,3437.5,3437.2,0.5]
[1721142651172,5.97944,3438.3,3437.2,3.40934]
[1721142651372,2.9085,3438.2,3437.4,2.90912]
[1721142651577,2.9085,3438.2,3437.5,2.90902]
[1721142651740,0.89128379,3438.5,3437.2,0.5]
[1721142651945,0.89128379,3438.5,3437.8,2.90878]
[1721142653093,8.97906,3438.8,3437.9,2.90875]
[1721142653378,2.90825,3438.5,3437.6,2.90895]
[1721142653580,6.071,3438.8,3437.5,2.90908]
[1721142653581,2.9085,3438.2,3437.5,2.90908]
[1721142654084,0.55,3438.7,3437.2,0.5]
[1721142654085,2.90875,3437.9,3437.2,0.5]
[1721142654413,2.90901,3437.6,3437.2,0.5]
[1721142654881,2.90893,3437.7,3437.2,0.5]
[1721142655065,2.90901,3437.6,3437.2,0.5]
[1721142656281,2.90915,3437.5,3437.2,0.5]
[1721142657687,5.98015,3437.5,3437.2,0.5]
[1721142657857,2.90926,3437.3,3437.2,0.5]
[1721142658054,1.438908,3437.4,3437.2,0.5]
[1721142658530,4.348088,3437.4,3437.2,0.5]
[1721142658696,3.071,3437.7,3437.2,0.5]
[1721142658697,2.90901,3437.6,3437.2,0.5]
[1721142659296,3.071,3437.8,3437.2,0.5]
[1721142659617,2.90887,3437.8,3437.2,0.5]
[1721142660296,2.90905,3437.6,3437.2,0.5]
[1721142660504,3.071,3438.2,3437.2,0.5]
[1721142660688,3.888606,3438.2,3437.3,2.90924]
[1721142660889,0.817606,3438.2,3437.4,2.90916]
[1721142661191,3.726116,3438.2,3437.4,2.90916]
[1721142661397,0.8902056,3438.1,3437.4,2.90916]
[1721142661791,0.8902056,3438.1,3437.3,2.90925]
[1721142662428,0.8902056,3438.1,3437.4,2.90915]
[1721142663130,0.8902056,3438.1,3437.6,2.909]
[1721142663337,3.071,3438.4,3437.3,2.90925]
[1721142663552,3.071,3438.4,3437.2,0.5]
[1721142663553,3.071,3438.2,3437.2,0.5]
[1721142663897,3.621,3438.1,3437.2,0.5]
[1721142664843,3.071,3438.3,3437.2,0.5]
[1721142665026,2.90863,3438.1,3437.3,2.90923]
[1721142665398,2.90808,3438.7,3437.2,0.5]
[1721142665399,2.90829,3438.5,3437.7,2.90891]
[1721142665734,5.17862,3438.8,3437.9,2.90875]
[1721142665917,2.90802,3438.8,3437.9,2.90875]
[1721142666121,2.90783,3439.0,3438.0,2.90865]
[1721142666319,2.90783,3439.0,3437.4,0.340923]
[1721142666320,5.97866,3439.2,3438.3,2.90839]
[1721142666664,5.1782,3439.3,3438.5,2.90823]
[1721142666665,2.9076,3439.3,3438.5,2.90823]
[1721142666859,2.90765,3439.2,3438.5,2.90823]
[1721142667170,3.1241541,3439.7,3438.5,2.90823]
[1721142667171,2.90755,3439.4,3438.5,2.90823]
[1721142667462,0.0531541,3439.7,3438.2,2.3845]
[1721142667644,0.0531541,3439.7,3438.7,2.90801]
[1721142667822,0.63988751,3439.7,3438.9,2.90788]
[1721142668251,0.63988751,3439.7,3438.9,2.90787]
[1721142668733,0.0531541,3439.7,3439.3,2.90756]
[1721142669530,2.90733,3439.6,3438.8,2.90792]
[1721142669729,0.0531541,3439.7,3438.9,2.90789]
[1721142669933,0.0531541,3439.7,3438.5,3.62706281]
[1721142669934,0.0531541,3439.7,3439.3,2.90755]
[1721142670255,0.0531541,3439.7,3439.4,2.90745]
[1721142670434,0.0531541,3439.7,3439.5,2.90739]
[1721142670622,0.0531541,3439.7,3439.5,3.488892]
[1721142670967,0.0531541,3439.7,3439.6,2.90731]